Cogmind - Beta 16 @@@ ROGUE MODE // 2026.01.24 @ 14:34:33 Player: TheAnonymousOne Result: Self-destructed Performance ------------- Evolutions (2) 1000 Regions Visited (3) 600 Robots Destroyed (31) 155 Value Destroyed (771) 771 Prototype IDs (1) 20 Alien Tech Used (0) 0 Bonus (0) 0 TOTAL SCORE: 2546 Bonus ------- None Cogmind --------- Core Integrity 377/550 Matter 255/300 Energy 34/100 System Corruption 1% Temperature Critical (639) Movement Core (50) Location -8/Materials Parts ------- > --- POWER (2) -------- (None) > --- PROPULSION (4) --- (None) > --- UTILITY (3) ------ Weight Redist. System > --- WEAPON (2) ------- (None) > --- INVENTORY (5) ---- Pulse Rifle Grenade Launcher Peak State ------------ > --- POWER ------------ Improved Ion Engine Light Nuclear Core > --- PROPULSION ------- Flight Unit Flight Unit Flight Unit > --- UTILITY ---------- Heat Sink Weight Redist. System Hardened Light Armor Plating > --- WEAPON ----------- Pulse Rifle Mini Grenade Launcher > --- INVENTORY -------- Light EM Pulse Cannon Grenade Launcher [Rating: 18] Favorites ----------- Power Ion Engine Engine Ion Engine Power Core Light Nuclear Core Propulsion Light Treads Treads Light Treads Flight Unit Flight Unit Utility Weight Redist. System Device Weight Redist. System Processor Transport Network Coupler Protection Hardened Light Armor Plating Weapon Light Assault Rifle Energy Gun Particle Gun Energy Cannon Light EM Pulse Cannon Ballistic Gun Light Assault Rifle Launcher Mini Grenade Launcher Build | -11 -10 -9 -8 ------- Run | Yrd Mat Mat Mat Slots Evolved 4 | . . 2 2 Power 1 | . . . 1 Propulsion 2 | . . 1 1 Utility 1 | . . 1 . Weapon . | . . . . Parts Attached 33 | 4 9 14 6 Power 6 | . 3 1 2 Engine 4 | . 2 1 1 Core 2 | . 1 . 1 Reactor . | . . . . Propulsion 14 | 2 2 8 2 Treads 5 | 2 2 1 . Leg . | . . . . Wheel . | . . . . Hover . | . . . . Flight 9 | . . 7 2 Utility 4 | . 2 2 . Device 2 | . 1 1 . Storage . | . . . . Processor 1 | . 1 . . Hackware . | . . . . Protection 1 | . . 1 . Artifact . | . . . . Weapon 9 | 2 2 3 2 Energy Gun 4 | 1 1 1 1 Energy Cannon 1 | . . 1 . Ballistic Gun 3 | 1 1 1 . Ballistic Cannon . | . . . . Launcher 1 | . . . 1 Special Weapon . | . . . . Impact Weapon . | . . . . Slashing Weapon . | . . . . Piercing Weapon . | . . . . Special Melee Weapon . | . . . . Unidentified Prototypes . | . . . . Parts Lost 20 | . 4 5 11 Power 4 | . 1 1 2 Propulsion 10 | . 2 3 5 Utility 2 | . . . 2 Weapon 4 | . 1 1 2 Highest Loss Streak 10 | . 2 2 10 To Critical Strikes . | . . . . Average Backups 4 | 3 4 4 3 Power 2 | 1 2 1 . Propulsion . | . . 1 . Utility . | . . . . Weapon . | 1 . 1 1 Tool/Special . | . . . . Unused Backups 4 | . 2 1 1 Power 1 | . . 1 . Propulsion . | . . . . Utility 1 | . 1 . . Weapon 2 | . 1 . 1 Tool/Special . | . . . . Average Slot Usage (%) 86 | . 87 85 81 Engine 12 | . 12 10 13 Treads 17 | . 25 5 . Flight 9 | . . 23 28 Device 11 | . 9 14 16 Processor 9 | . 9 11 . Energy Gun 10 | . 14 6 6 Ballistic Gun 11 | . 13 10 3 Peak Build Rating 18 | 4 9 16 18 Average Rating 9 | 3 7 12 14 On Entrance 6 | . 4 9 13 Avg Prop Armor Cover (%) 14 | . . 14 . Naked Turns . | . . . . Heaviest Build 26 | 2 9 23 26 Greatest Support 46 | 40 46 46 26 Greatest Overweight (x) 2 | . 2 1 . Average Overweight (x) . | . . . . Largest Inventory Capacity 5 | 5 5 5 5 Average Capacity 5 | 5 5 5 5 Most Carried 5 | 5 5 5 5 Average Carried 4 | 3 4 3 3 Final Capacity 5 | 5 5 5 5 Final Carried 5 | 4 5 5 2 Class Distribution -------------------- 64% | Scavenger-Mutant 29% | Mutant 6% | Sprinter Dominant Class ---------------- Scavenger-Mutant | -10/Materials Scavenger-Mutant | -9/Materials Scavenger-Mutant | -8/Materials Resources | -11 -10 -9 -8 ----------- Run | Yrd Mat Mat Mat Matter Collected 653 | 191 162 249 51 Remotely . | . . . . Salvage Created 985 | . 413 448 124 Parts 61 | . 24 27 10 Haulers Intercepted 1 | . 1 . . Recyclers Shooed . | . . . . Parts Field Recycled . | . . . . Retrieved Matter . | . . . . Parts Self-Destructed . | . . . . Prevented . | . . . . Parts Restored . | . . . . Kills | -11 -10 -9 -8 ------- Run | Yrd Mat Mat Mat Combat Hostiles Destroyed 26 | . 7 13 6 Guns 21 | . 6 13 2 AOE 4 | . . . 4 Classes Destroyed 8 | . 3 4 1 Worker 1 | . . . 1 Hauler 1 | . 1 . . Recycler 1 | . . 1 . Watcher 2 | . 2 . . Swarmer 10 | . . 6 4 Grunt 13 | . 7 5 1 Brawler 1 | . . 1 . Sentry 2 | . . 1 1 Best Kill Streak 7 | . 3 7 6 Combat Bots Only 6 | . 2 6 5 Max Kills in Single Turn 4 | . 1 2 4 Gunslinging 1 | . . 1 . Exploded 3 | . . . 3 Melee . | . . . . Uniques/NPCs Destroyed . | . . . . Combat | -11 -10 -9 -8 -------- Run | Yrd Mat Mat Mat Hostile Shots Fired 216 | . 61 89 66 Missed 56 | . 15 28 13 Hits 160 | . 46 61 53 Melee 3 | . . 3 . Projectile 157 | . 46 58 53 Critical Strikes 4 | . 1 . 3 Damage Taken 2031 | . 586 641 804 Core 398 | . 112 113 173 Absorbed by Shields . | . . . . Regen/Repaired (Parts) 20 | . . 20 . Core Remaining (%) 75 | 100 55 71 . Volleys Fired 106 | . 42 45 19 Largest 2 | . 2 2 2 Hottest 93 | . 85 88 93 Shots Fired 179 | . 81 78 20 Gun 170 | . 81 72 17 Cannon 7 | . . 6 1 Launcher 2 | . . . 2 Special . | . . . . Kinetic 83 | . 38 45 . Thermal 87 | . 43 27 17 Explosive 2 | . . . 2 Electromagnetic 7 | . . 6 1 Robot Hit Streak 11 | . 7 11 7 Robot Miss Streak 5 | . 3 5 1 Penetration Max . | . . . . Secondary Targets 6 | . 3 3 . Max Gunslinging Chain 1 | . 1 1 . Shots Hit Robots 113 | . 49 51 13 Core Hits 57 | . 24 23 10 Critical Kills . | . . . . Critical Parts Destroyed 1 | . . 1 . Critical Strikes 5 | . 2 3 . Burn 3 | . 2 1 . Destroy 2 | . . 2 . Melee Attacks . | . . . . Impact . | . . . . Slashing . | . . . . Piercing . | . . . . Sneak Attacks . | . . . . Combat Hostiles . | . . . . Follow-up Attacks . | . . . . Damage Inflicted 1929 | . 568 730 631 Guns 1460 | . 568 656 236 Cannons 96 | . . 74 22 Explosions 373 | . . . 373 Melee . | . . . . Ramming . | . . . . Kinetic 599 | . 216 383 . Thermal 861 | . 352 273 236 Explosive 373 | . . . 373 Electromagnetic 96 | . . 74 22 Impact . | . . . . Slashing . | . . . . Piercing . | . . . . Highest Corruption 2 | . 2 . 1 Average Corruption 1 | . 2 . 1 Corruption Purged . | . . . . Corruption Blocked . | . . . . Effects 8 | . 6 . 2 Message Errors 1 | . 1 . . Matter Fused 1 | . 1 . . Heat Flow Errors 3 | . 1 . 2 Energy Discharges 2 | . 2 . . Misfires 1 | . 1 . . Overload Shots . | . . . . Overflow Damage . | . . . . Projectiles . | . . . . Explosions . | . . . . Melee . | . . . . Knockbacks . | . . . . Impact . | . . . . Kinetic . | . . . . Secondary . | . . . . Self-Inflicted Damage 49 | . . . 49 Shots 1 | . . . 1 Rammed 1 | . 1 . . Targets Rammed 1 | . 1 . . Kicked . | . . . . Crushed . | . . . . Highest Temperature 639 | . 345 302 639 Average Temperature 142 | . 111 131 235 Received Heat Transfer 942 | . 342 204 396 Effects 6 | . 1 . 5 Shutdowns 1 | . . . 1 Energy Bleed 1 | . 1 . . Interference 1 | . . . 1 Matter Decay 1 | . . . 1 Short Circuit 1 | . . . 1 Damage (minor) 1 | . . . 1 Siege Activations . | . . . . Martial Activations . | . . . . Shielding Activations . | . . . . Robots Disrupted . | . . . . Combat Hostiles . | . . . . Robots Corrupted . | . . . . Combat Hostiles . | . . . . Parts Fried 1 | . . 1 . Impact Corruptions . | . . . . Robots Melted 1 | . 1 . . Combat Hostiles 1 | . 1 . . Parts Melted 4 | . . 2 2 Heat Transferred 2246 | . 988 740 518 Parts Sabotaged . | . . . . Parts Stolen . | . . . . Parts Stripped . | . . . . Power Chain Reactions . | . . . . Alert | -11 -10 -9 -8 ------- Run | Yrd Mat Mat Mat Maximum Alert Level . | . . . . Low Security (%) 100 | 100 100 100 100 Level 1 . | . . . . Level 2 . | . . . . Level 3 . | . . . . Level 4 . | . . . . Level 5 . | . . . . High Security . | . . . . Max Security . | . . . . Peak Influence 171 | . 76 171 140 Initial 50 | . . 3 50 Average 38 | . 17 87 54 Influence Increases 783 | . 252 322 209 Destroy 0b10 Robot/C 520 | . 140 260 120 Destroy 0b10 Robot/NC 25 | . 15 5 5 Destroy Leader 106 | . 46 40 20 Successful Hack 51 | . 36 15 . Disable Machine 15 | . . . 15 Destroy Structure 21 | . . 2 19 Lose Combat Pursuer 45 | . 15 . 30 Influence Decreases 684 | . 242 211 231 Entered New Map 78 | . . 7 71 Time Decay 416 | . 202 164 50 Lost Part 190 | . 40 40 110 Squads Dispatched 2 | . 1 . 1 Investigation 1 | . . . 1 Extermination . | . . . . Reinforcement 1 | . 1 . . Assault . | . . . . Garrison . | . . . . Intercept . | . . . . Searches Triggered . | . . . . Construction Impeded . | . . . . Haulers Reinforced . | . . . . Active Scanning Responses . | . . . . Cargo Convoy Interrupts . | . . . . Stealth | -11 -10 -9 -8 --------- Run | Yrd Mat Mat Mat Distress Signals 4 | . 2 2 . Communications Jammed . | . . . . Distress Signals . | . . . . Times Spotted 47 | . 17 17 13 Peak Tracking Total 12 | . 3 7 12 Tactical Retreats 2 | . 1 . 1 Traps | -11 -10 -9 -8 ------- Run | Yrd Mat Mat Mat Traps Triggered 1 | . 1 . . Indirectly . | . . . . Trap Hack Attempts . | . . . . Triggered . | . . . . Disarmed . | . . . . Reprogrammed . | . . . . Reused . | . . . . Traps Extracted . | . . . . Installed . | . . . . Triggered . | . . . . Machines | -11 -10 -9 -8 ---------- Run | Yrd Mat Mat Mat Machines Disabled 1 | . . . 1 Max in Single Turn 1 | . . . 1 Machines Repaired . | . . . . Machines Dismantled . | . . . . Machines Sabotaged . | . . . . Overloaded Fab Kills . | . . . . Hacking | -11 -10 -9 -8 --------- Run | Yrd Mat Mat Mat Machines Accessed 15 | . 8 6 1 Terminals 9 | . 5 3 1 Fabricators . | . . . . Repair Stations 2 | . 1 1 . Recycling Units 3 | . 2 1 . Scanalyzers 1 | . . 1 . Garrison Access . | . . . . Total Hacks 38 | . 20 16 2 Successful 28 | . 13 15 . Failed 10 | . 7 1 2 Catastrophic 2 | . . . 2 Database Lockouts . | . . . . Manual 16 | . 10 4 2 Terminals 24 | . 17 5 2 Fabricators . | . . . . Repair Stations 3 | . 1 2 . Recycling Units 3 | . 2 1 . Scanalyzers 8 | . . 8 . Garrison Access . | . . . . Terminal Hacks 7 | . 6 1 . Record 3 | . 3 . . Robot Analysis 3 | . 2 1 . Branch Access Points 1 | . 1 . . Fabricator Hacks . | . . . . Repair Station Hacks 3 | . 1 2 . Scan Component 2 | . 1 1 . Repair 1 | . . 1 . Recycling Unit Hacks 3 | . 2 1 . Report Inventory 3 | . 2 1 . Scanalyzer 8 | . . 8 . Insert Component 3 | . . 3 . Analyze 3 | . . 3 . Retrieve Study 2 | . . 2 . Garrison Access Hacks . | . . . . Unauthorized Hacks 7 | . 4 3 . Terminals 7 | . 4 3 . Botnet 7 | . 4 3 . Fabricators . | . . . . Repair Stations . | . . . . Recycling Units . | . . . . Scanalyzers . | . . . . Garrison Access . | . . . . Data Cores Recovered . | . . . . Used . | . . . . Hacking Detections 10 | . 4 5 1 Full Trace Events 4 | . 1 2 1 Feedback Events 1 | . . . 1 Corruption 1 | . . . 1 Feedback Blocked . | . . . . Robot Schematics Acquired . | . . . . Robots Built . | . . . . Authchips . | . . . . Time . | . . . . Total Robot Build Rating . | . . . . Part Schematics Acquired 3 | . . 3 . Parts Built . | . . . . Authchips . | . . . . Time . | . . . . Total Part Build Rating . | . . . . Part Studies Acquired 2 | . . 2 . Parts Repaired 1 | . . 1 . Time 32 | . . 32 . Parts Recycled . | . . . . Recycled Matter . | . . . . Retrieved Matter . | . . . . Retrieved Components . | . . . . Parts Scanalyzed 3 | . . 3 . Part Schematics Acquired 3 | . . 3 . Parts Damaged . | . . . . Bothacking | -11 -10 -9 -8 ------------ Run | Yrd Mat Mat Mat Used RIF Installer . | . . . . Robots Hacked . | . . . . Non-combat . | . . . . Combat . | . . . . Robot Hacks Applied . | . . . . Relay Couplers Released . | . . . . Fabnet Peak Effective % . | . . . . Robots Rewired . | . . . . Allies Hacked . | . . . . Hacks Repelled . | . . . . Allies | -11 -10 -9 -8 -------- Run | Yrd Mat Mat Mat Total Allies . | . . . . Largest Group . | . . . . Highest-Rated Group . | . . . . Highest-Rated Ally . | . . . . Total Orders . | . . . . Ally Attacks . | . . . . Total Damage . | . . . . Kills . | . . . . Allies Corrupted . | . . . . Allies Melted . | . . . . Intel | -11 -10 -9 -8 ------- Run | Yrd Mat Mat Mat Active Infowar (turns) 967 | . 565 401 1 T.N.C. 967 | . 565 401 1 Robot Analysis Total 3 | . 2 1 . Derelict Logs Recovered . | . . . . Drone Launches . | . . . . Drone Recoveries . | . . . . Exploration | -11 -10 -9 -8 ------------- Run | Yrd Mat Mat Mat Turns Passed 1454 | 119 827 401 107 Spaces Moved 1050 | 35 433 459 123 Core 37 | 15 20 2 . Treads 448 | 20 413 15 . Legs . | . . . . Wheels . | . . . . Hover . | . . . . Flight 565 | . . 442 123 Fastest Speed 31 | 50 100 32 31 Average Speed 92 | 112 159 44 31 Slowest Speed 160 | 160 160 160 34 Overloaded Moves . | . . . . Propulsion Burnouts . | . . . . Robots Hopped 23 | . . 20 3 Potential Cave-ins . | . . . . Cave-ins Triggered . | . . . . Exploration Rate (%) 31 | 5 71 33 16 Regions Visited 3 Branch Regions . Pre-discovered Areas . | . . . . Known Exits Taken . | . . . . Unknown Exits Taken 3 | 1 1 1 . Scrap Searched . | . . . . Spaces Dug . | . . . . Terrain Destroyed 20 | . . . 20 Melee . | . . . . Projectile . | . . . . AOE 20 | . . . 20 Terrain Rammed . | . . . . Walls Destroyed . | . . . . Machines Disabled . | . . . . Actions | -11 -10 -9 -8 --------- Run | Yrd Mat Mat Mat Total 1339 | 115 494 563 167 Wait 118 | 69 2 32 15 Move 1004 | 34 432 421 117 Hop 20 | . . 17 3 Pick Up 34 | 8 5 19 2 Fast Attach 8 | . 6 1 1 Attach 22 | 4 1 13 4 Detach 1 | . . . 1 Swap 8 | . 2 3 3 Drop 17 | . 3 12 2 Fire 106 | . 42 45 19 Melee . | . . . . Ram . | . . . . Kick . | . . . . Crush 1 | . 1 . . Escape Stasis . | . . . . Rewire . | . . . . Trap . | . . . . Miscellaneous . | . . . . Route ------- -11/Scrapyard -10/Materials (discovered 4 exits: *Mat x2 / *Min x2) -9/Materials -8/Materials History --------- Turn | Location | Event 6 | -11/Scrapyard | Discovered new exit (range 15) 120 | -11/Scrapyard | Entered Materials 263 | -10/Materials | Discovered new exit (range 15) 323 | -10/Materials | Build established: Mutant 407 | -10/Materials | Discovered new exit (range 5) 650 | -10/Materials | Build established: Scavenger-Mutant 776 | -10/Materials | Identified exit to Mines 907 | -10/Materials | Discovered new exit (range 15) 947 | -10/Materials | Entered another Materials area 947 | -9/Materials | Evolved 2 slots: Propulsion x1, Utility x1 1214 | -9/Materials | Discovered new exit (range 7) 1319 | -9/Materials | Repaired Weight Redist. System 1348 | -9/Materials | Entered another Materials area 1348 | -8/Materials | Evolved 2 slots: Power x1, Propulsion x1 1455 | -8/Materials | Self-destructed Last Messages --------------- K-01 Serf collects debris. Flight Unit+ destroyed. Critical hit (Burn: +37). Flight Unit+ destroyed. Critical hit (Burn: +37). K-01 Serf collects debris. Flight Unit melted. S-10 Pest destroyed. Overheating: Hrd. Light Armor Plating damaged (-18). Imp. Ion Engine destroyed. Mni. Grenade Launcher broken. Overheating: Short circuit. Overheating: Matter decay (-45). Broken Mni. Grenade Launcher destroyed. K-01 Serf collects debris. Lgt. EM Pulse Cannon destroyed. Hrd. Light Armor Plating destroyed. Overheating: System interference. Weight Redist. System temporarily disabled. Map ----- +----------------------------------------------------+ | = ! ## ## #????????????????????????????????? | | ##%### ## #????????????????????????????????? | | ?###?#[ ## ####?????????????????????????????? | | ?????######## !##????????????????????????????? | | ?????? ??# !#????????????????????????????? | | ??????"""" ?# !#????????????????????????????? | | ???# """"" ?# !#????????????????????????????? | | ???# """"" # !#????????????????????????????? | | ???# # !##????????????????????????????? | | ?????""""" + ####?????????????????????????????? | | ?????""""" # #????????????????????????????????? | | ?????""""" # #????????????????????????????????? | | ????? ?# #??????##????????????????????????? | | ?????######?# #???? #????????????????????????? | | ????????????# #??!]] [#????????????????????????? | | ????????????# # !]] #????????????????????????? | | ????????????# / !]] #????????????????????????? | | ????????????# # #????????????????????????? | | ????????????# ###########??????????????????????? | | ????????????# # #??????????????????????? | | ????????????# # """ #??????????????????????? | | ????????????# # """"" #??????????????????????? | | ????????????# """" ##?????????????????????? | | ????????????+ % " #?????????????????????? | | ????????????# k%=g #?????????????????????? | | ????????????# ==b* = @ #?????????????????????? | | ????????????# g [% % g #?????????????????????? | | ????????????# g # #?????????????????????? | | ????????????# ###??## ###?????????????????????? | | ????????????# #?????###????????????????????????? | | ????????????+ #????????????????????????????????? | | ??????????? # ?????????????????????????????????? | | ??????????? # ?????????????????????????????????? | | ?????????? ?# ?????????????????????????????????? | | ?????????? ?# ?????????????????????????????????? | | ????????? ??# ?????????????????????????????????? | | ????????????# ?????????????????????????????????? | | ????????????? ?????????????????????????????????? | | ?????????????????????????????????????????????????? | | ?????????????????????????????????????????????????? | | ?????????????????????????????????????????????????? | | ?????????????????????????????????????????????????? | | ?????????????????????????????????????????????????? | | ?????????????????????????????????????????????????? | | ?????????????????????????????????????????????????? | | ?????????????????????????????????????????????????? | | ?????????????????????????????????????????????????? | | ?????????????????????????????????????????????????? | | ?????????????????????????????????????????????????? | | ?????????????????????????????????????????????????? | +----------------------------------------------------+ Best States ------------- Heat Dissipation 41 Energy Generation 21 Energy Capacity 430 Matter Stores 300 Matter Capacity 300 Sight Range 16 Terrain Scan Density 10 Additional Mass Support 6 Armor Coverage 150 Evasion (%) 63 Recoil Reduction 2 Item Schematics ----------------- VTOL Module | -9/Materials | Scanalyzed Flight Unit | -9/Materials | Scanalyzed Imp. Flight Unit | -9/Materials | Scanalyzed Robot Schematics ------------------ None Fabricated ------------ Nothing Repaired ---------- Weight Redist. System | 9% | -9/Materials Studied --------- VTOL Module | -9/Materials | Hacked Flight Unit | -9/Materials | Hacked Alien Tech Used ----------------- None Achievements -------------- Armchair Analyst Physics Hates This One Trick Quantum Hacking Safety First True Hacker Challenges ------------ None Game ------ Seed SixWeldingMaul Manual? 0 Play Time 00:21:33 Cumulative 7.4 hours Start 2026.01.24 @ 14:15:09 End 2026.01.24 @ 14:34:33 Sessions 1 Manual Loads 0 Difficulty Rogue Special Mode None Game No. 39 Rogue 39 Adventurer 0 Explorer 0 Win Type - Total 0 Types 0/0/0/0/0/0/0/0/0/0 Lore% 12 Gallery% 12 Achievement% 13 Wizard Run 0 Options --------- Layout 1 ASCII 0 Keyboard 0 Movement Numpad Keybinds 0 Fullscreen 1 Font 24/Smallcaps Map View 50x35 Zoom Use 0% Tactical HUD 0 Map Filters NONE Filters NONE Steam 1 RUN: 276c5d73-07b3-47ef-86f3-9e3b201251e7